[Event "Late-Titled-Tuesday-Blitz-February-06-2024"]
[Site "Chess.com"]
[Date "2024.02.06"]
[Round "7"]
[White "gahryman"]
[Black "N_Mullodzhanov"]
[Result "1-0"]
[WhiteElo "2677"]
[BlackElo "2480"]
[TimeControl "180+1"]
[EndTime "15:19:00 PST"]
[Termination "gahryman won by checkmate"]

1. e4 {[%clk 0:03:00.9]} 1... c6 {[%clk 0:03:00.1]} 2. d4 {[%clk 0:03:00.3]}
2... d5 {[%clk 0:03:00]} 3. e5 {[%clk 0:03:01]} 3... Bf5 {[%clk 0:02:59.7]} 4.
Nf3 {[%clk 0:03:01.6]} 4... e6 {[%clk 0:03:00]} 5. Be2 {[%clk 0:03:01.2]} 5...
c5 {[%clk 0:02:58.2]} 6. c3 {[%clk 0:02:59.8]} 6... Nc6 {[%clk 0:02:57.9]} 7.
O-O {[%clk 0:02:58.3]} 7... h6 {[%clk 0:02:49]} 8. Be3 {[%clk 0:02:39.5]} 8...
Qb6 {[%clk 0:02:48.7]} 9. Na3 {[%clk 0:02:25.9]} 9... c4 {[%clk 0:02:17.7]} 10.
Nxc4 {[%clk 0:02:14.7]} 10... dxc4 {[%clk 0:02:08.8]} 11. d5 {[%clk 0:02:14.7]}
11... Qxb2 {[%clk 0:02:00.8]} 12. dxc6 {[%clk 0:02:14.3]} 12... bxc6 {[%clk
0:01:57.3]} 13. Nd4 {[%clk 0:02:14.1]} 13... Be4 {[%clk 0:01:46.1]} 14. Bf3
{[%clk 0:02:11.5]} 14... Bd5 {[%clk 0:01:13]} 15. Bxd5 {[%clk 0:02:06.7]} 15...
exd5 {[%clk 0:01:11.3]} 16. Nxc6 {[%clk 0:01:48.4]} 16... Ne7 {[%clk 0:01:10]}
17. Qa4 {[%clk 0:01:42.4]} 17... Qb7 {[%clk 0:00:45.7]} 18. Nxe7+ {[%clk
0:01:22]} 18... Kxe7 {[%clk 0:00:46.6]} 19. Rfd1 {[%clk 0:01:20.8]} 19... Rc8
{[%clk 0:00:41.8]} 20. Rab1 {[%clk 0:01:17.9]} 20... Qc6 {[%clk 0:00:39.8]} 21.
Qxa7+ {[%clk 0:01:06.4]} 21... Rc7 {[%clk 0:00:39.8]} 22. Qd4 {[%clk 0:01:03]}
22... Rb7 {[%clk 0:00:22.5]} 23. Qc5+ {[%clk 0:00:46.9]} 23... Qxc5 {[%clk
0:00:03.8]} 24. Bxc5+ {[%clk 0:00:45.8]} 24... Ke6 {[%clk 0:00:04.7]} 25. Rxb7
{[%clk 0:00:42.9]} 25... Bxc5 {[%clk 0:00:05.6]} 26. Rb5 {[%clk 0:00:39.7]}
26... Rc8 {[%clk 0:00:05]} 27. Re1 {[%clk 0:00:36.1]} 27... Rc6 {[%clk
0:00:03.6]} 28. Kf1 {[%clk 0:00:35.4]} 28... Be7 {[%clk 0:00:03.8]} 29. Rd1
{[%clk 0:00:33.4]} 29... Bc5 {[%clk 0:00:04.2]} 30. f4 {[%clk 0:00:32.3]} 30...
g5 {[%clk 0:00:04]} 31. g3 {[%clk 0:00:27.3]} 31... gxf4 {[%clk 0:00:04.2]} 32.
gxf4 {[%clk 0:00:28.2]} 32... Be3 {[%clk 0:00:03]} 33. f5+ {[%clk 0:00:25.4]}
33... Kxf5 {[%clk 0:00:02.3]} 34. Rdxd5 {[%clk 0:00:25.5]} 34... Ke4 {[%clk
0:00:02.8]} 35. e6 {[%clk 0:00:18.3]} 35... fxe6 {[%clk 0:00:03.7]} 36. Rh5
{[%clk 0:00:16.8]} 36... Kd3 {[%clk 0:00:04]} 37. Rh3 {[%clk 0:00:13.1]} 37...
Rc8 {[%clk 0:00:04.4]} 38. Re5 {[%clk 0:00:12.4]} 38... Rf8+ {[%clk 0:00:04.7]}
39. Ke1 {[%clk 0:00:12.6]} 39... Kxc3 {[%clk 0:00:02.4]} 40. Rexe3+ {[%clk
0:00:12.8]} 40... Kd4 {[%clk 0:00:03]} 41. Ref3 {[%clk 0:00:12.5]} 41... Rb8
{[%clk 0:00:02.5]} 42. Rf4+ {[%clk 0:00:12.9]} 42... Kc5 {[%clk 0:00:02.6]} 43.
Rc3 {[%clk 0:00:13]} 43... Rb1+ {[%clk 0:00:02]} 44. Ke2 {[%clk 0:00:13.3]}
44... Rb2+ {[%clk 0:00:02.9]} 45. Ke3 {[%clk 0:00:13.5]} 45... Rxh2 {[%clk
0:00:03.4]} 46. Rfxc4+ {[%clk 0:00:12.7]} 46... Kd6 {[%clk 0:00:04.3]} 47. Rd4+
{[%clk 0:00:12.8]} 47... Ke5 {[%clk 0:00:04.4]} 48. Rc5+ {[%clk 0:00:12.8]}
48... Kf6 {[%clk 0:00:04.9]} 49. Rf4+ {[%clk 0:00:13.1]} 49... Kg6 {[%clk
0:00:04.9]} 50. a4 {[%clk 0:00:13.6]} 50... Rh3+ {[%clk 0:00:05]} 51. Rf3 {[%clk
0:00:13.3]} 51... Rh4 {[%clk 0:00:04.7]} 52. a5 {[%clk 0:00:13.5]} 52... Ra4
{[%clk 0:00:05.6]} 53. Kf2 {[%clk 0:00:12.4]} 53... Ra2+ {[%clk 0:00:05.5]} 54.
Kg3 {[%clk 0:00:12.5]} 54... h5 {[%clk 0:00:06.4]} 55. Kh3 {[%clk 0:00:11.4]}
55... Kh6 {[%clk 0:00:06.3]} 56. Re5 {[%clk 0:00:10.9]} 56... Kg7 {[%clk
0:00:04.2]} 57. Rxe6 {[%clk 0:00:10.2]} 57... Rxa5 {[%clk 0:00:04]} 58. Re2
{[%clk 0:00:10.3]} 58... Rg5 {[%clk 0:00:03.7]} 59. Rg2 {[%clk 0:00:10.3]} 59...
Kh6 {[%clk 0:00:03.8]} 60. Rxg5 {[%clk 0:00:10.1]} 60... Kxg5 {[%clk 0:00:04.7]}
61. Rb3 {[%clk 0:00:10.2]} 61... Kh6 {[%clk 0:00:05.6]} 62. Rb5 {[%clk
0:00:10.4]} 62... Kg6 {[%clk 0:00:06]} 63. Kh4 {[%clk 0:00:10.8]} 63... Kf6
{[%clk 0:00:06]} 64. Rg5 {[%clk 0:00:11.1]} 64... Ke6 {[%clk 0:00:06.3]} 65.
Kxh5 {[%clk 0:00:11.9]} 65... Kd6 {[%clk 0:00:07.2]} 66. Rf5 {[%clk 0:00:12.3]}
66... Kc6 {[%clk 0:00:08.1]} 67. Kg5 {[%clk 0:00:12.9]} 67... Kb6 {[%clk
0:00:09]} 68. Kf4 {[%clk 0:00:13.4]} 68... Kc6 {[%clk 0:00:09.9]} 69. Ke4 {[%clk
0:00:14]} 69... Kd7 {[%clk 0:00:10.8]} 70. Kd5 {[%clk 0:00:13.9]} 70... Kc7
{[%clk 0:00:11.3]} 71. Rf6 {[%clk 0:00:13.7]} 71... Kb7 {[%clk 0:00:12.2]} 72.
Rc6 {[%clk 0:00:13.9]} 72... Kb8 {[%clk 0:00:12.6]} 73. Kc5 {[%clk 0:00:13.7]}
73... Ka7 {[%clk 0:00:13.5]} 74. Kb5 {[%clk 0:00:13.8]} 74... Kb8 {[%clk
0:00:14.4]} 75. Kb6 {[%clk 0:00:14.2]} 75... Ka8 {[%clk 0:00:14.7]} 76. Rc8#
{[%clk 0:00:14.9]} 1-0

[Event "Late-Titled-Tuesday-Blitz-February-06-2024"]
[Site "Chess.com"]
[Date "2024.02.06"]
[Round "7"]
[White "ural58"]
[Black "temiksmozg"]
[Result "0-1"]
[WhiteElo "2473"]
[BlackElo "2614"]
[TimeControl "180+1"]
[EndTime "15:19:02 PST"]
[Termination "temiksmozg won on time"]

1. e4 {[%clk 0:02:54.1]} 1... c5 {[%clk 0:02:59.6]} 2. b3 {[%clk 0:02:53.2]}
2... e5 {[%clk 0:02:59.2]} 3. Bb2 {[%clk 0:02:52.9]} 3... d6 {[%clk 0:02:59.7]}
4. f4 {[%clk 0:02:52.8]} 4... exf4 {[%clk 0:02:58.5]} 5. Qf3 {[%clk 0:02:52.6]}
5... Qh4+ {[%clk 0:02:53.9]} 6. g3 {[%clk 0:02:52.6]} 6... fxg3 {[%clk
0:02:51.9]} 7. hxg3 {[%clk 0:02:53.1]} 7... Qg4 {[%clk 0:02:44]} 8. Qe3 {[%clk
0:02:53]} 8... Qg6 {[%clk 0:02:40.6]} 9. Nc3 {[%clk 0:02:39.2]} 9... Nf6 {[%clk
0:02:38.9]} 10. O-O-O {[%clk 0:02:37.2]} 10... Be7 {[%clk 0:02:32.6]} 11. Nb5
{[%clk 0:02:31.7]} 11... Na6 {[%clk 0:02:29.1]} 12. e5 {[%clk 0:01:45.2]} 12...
Ng4 {[%clk 0:02:28.2]} 13. Qe1 {[%clk 0:00:56.9]} 13... Nxe5 {[%clk 0:02:09.7]}
14. Bxe5 {[%clk 0:00:56.4]} 14... dxe5 {[%clk 0:02:10.6]} 15. Qxe5 {[%clk
0:00:56.2]} 15... Be6 {[%clk 0:02:07.4]} 16. Nd6+ {[%clk 0:00:43.1]} 16... Kf8
{[%clk 0:01:39.6]} 17. Nxb7 {[%clk 0:00:36.5]} 17... Nb4 {[%clk 0:01:39]} 18.
Bd3 {[%clk 0:00:22.2]} 18... Qf6 {[%clk 0:01:38.1]} 19. Qxf6 {[%clk 0:00:20.5]}
19... gxf6 {[%clk 0:01:32.3]} 20. Be4 {[%clk 0:00:15.6]} 20... Rb8 {[%clk
0:01:22.3]} 21. a3 {[%clk 0:00:15]} 21... f5 {[%clk 0:01:03.8]} 22. Bf3 {[%clk
0:00:13.7]} 22... Nd5 {[%clk 0:00:59.3]} 23. Na5 {[%clk 0:00:13.5]} 23... Nf6
{[%clk 0:00:54.7]} 24. Nc6 {[%clk 0:00:13.4]} 24... Rb6 {[%clk 0:00:53.5]} 25.
Nxe7 {[%clk 0:00:13.6]} 25... Kxe7 {[%clk 0:00:54]} 26. Ne2 {[%clk 0:00:13.9]}
26... Ne4 {[%clk 0:00:49.8]} 27. Bxe4 {[%clk 0:00:13.3]} 27... fxe4 {[%clk
0:00:50.7]} 28. Nf4 {[%clk 0:00:13.7]} 28... c4 {[%clk 0:00:45.5]} 29. b4 {[%clk
0:00:13.4]} 29... a5 {[%clk 0:00:44.8]} 30. c3 {[%clk 0:00:13.7]} 30... Ra8
{[%clk 0:00:44.1]} 31. Kb2 {[%clk 0:00:13]} 31... axb4 {[%clk 0:00:43.7]} 32.
axb4 {[%clk 0:00:12.7]} 32... Rba6 {[%clk 0:00:43.4]} 33. Ra1 {[%clk 0:00:11.8]}
33... Rxa1 {[%clk 0:00:29.6]} 34. Rxa1 {[%clk 0:00:12.4]} 34... Rxa1 {[%clk
0:00:26.5]} 35. Kxa1 {[%clk 0:00:12.7]} 35... Bd7 {[%clk 0:00:27.4]} 36. Kb2
{[%clk 0:00:12.7]} 36... Kf6 {[%clk 0:00:22.8]} 37. Kc1 {[%clk 0:00:12.8]} 37...
Kg5 {[%clk 0:00:20.7]} 38. Kd1 {[%clk 0:00:12.6]} 38... Kg4 {[%clk 0:00:21.2]}
39. Ne2 {[%clk 0:00:12.6]} 39... Kf3 {[%clk 0:00:20.6]} 40. Ke1 {[%clk 0:00:13]}
40... f5 {[%clk 0:00:18.8]} 41. Kf1 {[%clk 0:00:11.2]} 41... e3 {[%clk
0:00:15.4]} 42. dxe3 {[%clk 0:00:10.4]} 42... Kxe3 {[%clk 0:00:16.3]} 43. Nd4
{[%clk 0:00:09.8]} 43... Kd3 {[%clk 0:00:15.3]} 44. b5 {[%clk 0:00:10.1]} 44...
Kxc3 {[%clk 0:00:15.6]} 45. b6 {[%clk 0:00:10.4]} 45... Bc8 {[%clk 0:00:16]} 46.
Nb5+ {[%clk 0:00:10.6]} 46... Kb2 {[%clk 0:00:16.1]} 47. Nd6 {[%clk 0:00:11.2]}
47... Ba6 {[%clk 0:00:14.5]} 48. Nxc4+ {[%clk 0:00:06.2]} 48... Kc3 {[%clk
0:00:14.5]} 49. Kf2 {[%clk 0:00:05.3]} 49... Kxc4 {[%clk 0:00:14.2]} 50. Ke3
{[%clk 0:00:05.9]} 50... Kd5 {[%clk 0:00:14.4]} 51. Kf4 {[%clk 0:00:06.5]} 51...
Ke6 {[%clk 0:00:14.9]} 52. Kg5 {[%clk 0:00:06.6]} 52... Bc8 {[%clk 0:00:12.2]}
53. Kh6 {[%clk 0:00:07]} 53... Kf6 {[%clk 0:00:12.1]} 54. Kxh7 {[%clk
0:00:07.1]} 54... Kg5 {[%clk 0:00:12.6]} 55. Kg7 {[%clk 0:00:07.3]} 55... Bb7
{[%clk 0:00:07.7]} 56. Kf7 {[%clk 0:00:07.3]} 56... Be4 {[%clk 0:00:07.5]} 57.
Ke6 {[%clk 0:00:06.6]} 57... Bf3 {[%clk 0:00:07.6]} 58. Ke5 {[%clk 0:00:06.8]}
58... Kg4 {[%clk 0:00:07.5]} 59. Kf6 {[%clk 0:00:05.3]} 59... Be4 {[%clk
0:00:07.5]} 60. Ke5 {[%clk 0:00:05.4]} 60... Bb7 {[%clk 0:00:07.7]} 61. Kf6
{[%clk 0:00:05.6]} 61... Bc8 {[%clk 0:00:08]} 62. Ke5 {[%clk 0:00:05.8]} 62...
Kg5 {[%clk 0:00:08.3]} 63. Kd4 {[%clk 0:00:05]} 63... Kf6 {[%clk 0:00:08.2]} 64.
Ke3 {[%clk 0:00:05.3]} 64... Ke5 {[%clk 0:00:07.8]} 65. Kf3 {[%clk 0:00:05.5]}
65... Bb7+ {[%clk 0:00:08.4]} 66. Kf2 {[%clk 0:00:05.7]} 66... Kd6 {[%clk
0:00:08.3]} 67. Ke3 {[%clk 0:00:05.7]} 67... Bc8 {[%clk 0:00:08.5]} 68. Kf4
{[%clk 0:00:01.8]} 68... Kc6 {[%clk 0:00:08.4]} 0-1

[Event "Late-Titled-Tuesday-Blitz-February-06-2024"]
[Site "Chess.com"]
[Date "2024.02.06"]
[Round "7"]
[White "MeisterJabo"]
[Black "RantomOpening"]
[Result "1/2-1/2"]
[WhiteElo "2347"]
[BlackElo "2505"]
[TimeControl "180+1"]
[EndTime "15:19:04 PST"]
[Termination "Game drawn by stalemate"]

1. c4 {[%clk 0:03:00.4]} 1... e6 {[%clk 0:02:59.1]} 2. g3 {[%clk 0:03:00.3]}
2... d5 {[%clk 0:02:59.1]} 3. Bg2 {[%clk 0:03:01.2]} 3... Nf6 {[%clk 0:02:58.4]}
4. Nf3 {[%clk 0:03:01.3]} 4... d4 {[%clk 0:02:58.2]} 5. O-O {[%clk 0:03:00.3]}
5... c5 {[%clk 0:02:58.6]} 6. e3 {[%clk 0:03:00.2]} 6... Nc6 {[%clk 0:02:58.9]}
7. exd4 {[%clk 0:03:00.6]} 7... cxd4 {[%clk 0:02:59.8]} 8. d3 {[%clk 0:03:01]}
8... Bd6 {[%clk 0:02:59.9]} 9. Bg5 {[%clk 0:03:00.9]} 9... e5 {[%clk 0:02:56.5]}
10. a3 {[%clk 0:02:59.4]} 10... a5 {[%clk 0:02:56.3]} 11. Nbd2 {[%clk
0:02:59.9]} 11... O-O {[%clk 0:02:56]} 12. Re1 {[%clk 0:02:17.7]} 12... Bf5
{[%clk 0:02:53.8]} 13. Ne4 {[%clk 0:02:13.8]} 13... Bxe4 {[%clk 0:02:52.6]} 14.
Rxe4 {[%clk 0:02:13.7]} 14... h6 {[%clk 0:02:51.5]} 15. Bxf6 {[%clk 0:02:13.6]}
15... Qxf6 {[%clk 0:02:52.4]} 16. Qe2 {[%clk 0:02:10.6]} 16... Rfe8 {[%clk
0:02:51.9]} 17. Re1 {[%clk 0:02:09.9]} 17... Rac8 {[%clk 0:02:47.7]} 18. Nd2
{[%clk 0:02:08.6]} 18... Qd8 {[%clk 0:02:26]} 19. Rh4 {[%clk 0:02:06.9]} 19...
Ne7 {[%clk 0:02:21.2]} 20. Ne4 {[%clk 0:01:51.3]} 20... Ng6 {[%clk 0:02:18.3]}
21. Rh5 {[%clk 0:01:49.7]} 21... b6 {[%clk 0:02:15]} 22. Nxd6 {[%clk 0:01:44.1]}
22... Qxd6 {[%clk 0:02:15.9]} 23. Be4 {[%clk 0:01:44.5]} 23... Ne7 {[%clk
0:02:14.4]} 24. Rxe5 {[%clk 0:01:42]} 24... Kf8 {[%clk 0:01:45.2]} 25. Bg2
{[%clk 0:01:34.5]} 25... Rc7 {[%clk 0:01:32]} 26. h4 {[%clk 0:01:30.3]} 26...
Rd8 {[%clk 0:01:27.5]} 27. Bd5 {[%clk 0:01:07.3]} 27... g6 {[%clk 0:01:14.8]}
28. Bg2 {[%clk 0:01:06.5]} 28... Nc6 {[%clk 0:01:08.7]} 29. Re8+ {[%clk
0:01:05.4]} 29... Rxe8 {[%clk 0:01:08.3]} 30. Qxe8+ {[%clk 0:01:06.3]} 30... Kg7
{[%clk 0:01:08.9]} 31. Bxc6 {[%clk 0:01:02.9]} 31... Rxc6 {[%clk 0:01:09.8]} 32.
Re7 {[%clk 0:00:56.4]} 32... Qf6 {[%clk 0:01:01.8]} 33. Rxf7+ {[%clk 0:00:56]}
33... Qxf7 {[%clk 0:01:01.9]} 34. Qxc6 {[%clk 0:00:56.4]} 34... Qf5 {[%clk
0:00:56]} 35. Qe4 {[%clk 0:00:54.2]} 35... Qc5 {[%clk 0:00:46.7]} 36. b4 {[%clk
0:00:52.1]} 36... axb4 {[%clk 0:00:45.8]} 37. axb4 {[%clk 0:00:53]} 37... Qxb4
{[%clk 0:00:46.7]} 38. Qxd4+ {[%clk 0:00:53.3]} 38... Kf7 {[%clk 0:00:47]} 39.
Qd5+ {[%clk 0:00:53.3]} 39... Kg7 {[%clk 0:00:44.9]} 40. Kg2 {[%clk 0:00:54.2]}
40... Qb1 {[%clk 0:00:42.7]} 41. d4 {[%clk 0:00:51.1]} 41... Qb3 {[%clk
0:00:42.8]} 42. Qe5+ {[%clk 0:00:50.3]} 42... Kh7 {[%clk 0:00:41.7]} 43. c5
{[%clk 0:00:45.1]} 43... bxc5 {[%clk 0:00:41.7]} 44. Qxc5 {[%clk 0:00:42.2]}
44... Qd3 {[%clk 0:00:40.4]} 45. Qc7+ {[%clk 0:00:41.2]} 45... Kh8 {[%clk
0:00:36.3]} 46. Qd8+ {[%clk 0:00:41.4]} 46... Kh7 {[%clk 0:00:35.7]} 47. Qe7+
{[%clk 0:00:41.8]} 47... Kg8 {[%clk 0:00:35.9]} 48. Qe6+ {[%clk 0:00:41.6]}
48... Kh7 {[%clk 0:00:36]} 49. Qe5 {[%clk 0:00:40.5]} 49... g5 {[%clk
0:00:33.2]} 50. hxg5 {[%clk 0:00:37.6]} 50... hxg5 {[%clk 0:00:34.1]} 51. g4
{[%clk 0:00:34.3]} 51... Qd1 {[%clk 0:00:29.9]} 52. Qe4+ {[%clk 0:00:25.4]}
52... Kh6 {[%clk 0:00:29.2]} 53. d5 {[%clk 0:00:25]} 53... Kg7 {[%clk
0:00:25.5]} 54. Qf5 {[%clk 0:00:15.8]} 54... Qd2 {[%clk 0:00:19.5]} 55. Qe5+
{[%clk 0:00:14]} 55... Kh6 {[%clk 0:00:19.2]} 56. d6 {[%clk 0:00:14.5]} 56...
Qd1 {[%clk 0:00:18.4]} 57. Qf6+ {[%clk 0:00:13.2]} 57... Kh7 {[%clk 0:00:18.7]}
58. Qf5+ {[%clk 0:00:12.5]} 58... Kh6 {[%clk 0:00:18.5]} 59. d7 {[%clk
0:00:13.4]} 59... Qd6 {[%clk 0:00:16.5]} 60. Kh3 {[%clk 0:00:04.3]} 60... Qd1
{[%clk 0:00:13.7]} 61. Qf6+ {[%clk 0:00:04]} 61... Kh7 {[%clk 0:00:13.8]} 62.
d8=Q {[%clk 0:00:03.2]} 62... Qh1+ {[%clk 0:00:14.1]} 63. Kg3 {[%clk 0:00:04.1]}
63... Qg2+ {[%clk 0:00:10.8]} 64. Kxg2 {[%clk 0:00:03.7]} 1/2-1/2

[Event "Late-Titled-Tuesday-Blitz-February-06-2024"]
[Site "Chess.com"]
[Date "2024.02.06"]
[Round "7"]
[White "Yushko_Olga"]
[Black "Felix-Rose"]
[Result "0-1"]
[WhiteElo "2214"]
[BlackElo "2387"]
[TimeControl "180+1"]
[EndTime "15:19:06 PST"]
[Termination "Felix-Rose won by resignation"]

1. d4 {[%clk 0:02:55.3]} 1... d5 {[%clk 0:02:59.1]} 2. c4 {[%clk 0:02:55.8]}
2... e6 {[%clk 0:02:58.5]} 3. cxd5 {[%clk 0:02:56.2]} 3... exd5 {[%clk
0:02:58.9]} 4. Nc3 {[%clk 0:02:57]} 4... c6 {[%clk 0:02:59.3]} 5. Qc2 {[%clk
0:02:56.2]} 5... Nf6 {[%clk 0:02:56.6]} 6. Bg5 {[%clk 0:02:55.9]} 6... Be7
{[%clk 0:02:56.7]} 7. e3 {[%clk 0:02:55.8]} 7... Nbd7 {[%clk 0:02:57.1]} 8. Bd3
{[%clk 0:02:55.7]} 8... h6 {[%clk 0:02:56.9]} 9. Bh4 {[%clk 0:02:55.7]} 9... Nh5
{[%clk 0:02:57.1]} 10. Bxe7 {[%clk 0:02:54.3]} 10... Qxe7 {[%clk 0:02:58]} 11.
Nf3 {[%clk 0:02:53.6]} 11... Nf4 {[%clk 0:02:57]} 12. O-O {[%clk 0:02:43.8]}
12... Nxd3 {[%clk 0:02:56.3]} 13. Qxd3 {[%clk 0:02:44.7]} 13... O-O {[%clk
0:02:46]} 14. b4 {[%clk 0:02:44.5]} 14... Qxb4 {[%clk 0:02:38.6]} 15. Rab1
{[%clk 0:02:41.4]} 15... Qe7 {[%clk 0:02:37.8]} 16. Rfc1 {[%clk 0:02:39]} 16...
Re8 {[%clk 0:02:27.7]} 17. Na4 {[%clk 0:02:13.2]} 17... Nf6 {[%clk 0:02:15]} 18.
Nc5 {[%clk 0:02:06.1]} 18... Ne4 {[%clk 0:02:10.7]} 19. Ne5 {[%clk 0:01:59.9]}
19... Nd6 {[%clk 0:01:55.3]} 20. Qb3 {[%clk 0:01:51.5]} 20... f6 {[%clk
0:01:37.5]} 21. Ned3 {[%clk 0:01:44.2]} 21... Bf5 {[%clk 0:01:18.7]} 22. Rb2
{[%clk 0:01:36.5]} 22... Nc4 {[%clk 0:01:12.8]} 23. Re2 {[%clk 0:01:21.3]} 23...
b6 {[%clk 0:01:05.1]} 24. Na6 {[%clk 0:01:17.6]} 24... Qb7 {[%clk 0:00:50.4]}
25. Nab4 {[%clk 0:01:12.4]} 25... a5 {[%clk 0:00:41.8]} 26. Nc2 {[%clk
0:01:06.4]} 26... a4 {[%clk 0:00:37.4]} 27. Qb4 {[%clk 0:01:02.4]} 27... Bxd3
{[%clk 0:00:34.4]} 28. Ree1 {[%clk 0:00:58.4]} 28... Bxc2 {[%clk 0:00:31.9]} 29.
Rxc2 {[%clk 0:00:59.3]} 29... b5 {[%clk 0:00:30.1]} 30. h3 {[%clk 0:00:55.1]}
30... Qe7 {[%clk 0:00:30.1]} 31. Qc3 {[%clk 0:00:53.3]} 31... a3 {[%clk
0:00:28.2]} 32. Qd3 {[%clk 0:00:46.7]} 32... Qb4 {[%clk 0:00:25.6]} 33. Rce2
{[%clk 0:00:43.2]} 33... Re4 {[%clk 0:00:20]} 34. f3 {[%clk 0:00:42.1]} 34...
Nb2 {[%clk 0:00:19.1]} 35. Qc2 {[%clk 0:00:39.7]} 35... Ree8 {[%clk 0:00:17.3]}
36. Qxc6 {[%clk 0:00:39.3]} 36... Qc4 {[%clk 0:00:16]} 37. Qd7 {[%clk
0:00:35.3]} 37... Nd3 {[%clk 0:00:15.1]} 38. Rd1 {[%clk 0:00:34.3]} 38... Nc5
{[%clk 0:00:15.3]} 39. dxc5 {[%clk 0:00:27]} 39... Qxe2 {[%clk 0:00:15.7]} 40.
Qxd5+ {[%clk 0:00:26.9]} 40... Kh8 {[%clk 0:00:16.4]} 41. Rb1 {[%clk 0:00:22.5]}
41... Qxe3+ {[%clk 0:00:14.9]} 42. Kh1 {[%clk 0:00:22.8]} 42... Rad8 {[%clk
0:00:15.3]} 43. Qc6 {[%clk 0:00:21.2]} 43... Rc8 {[%clk 0:00:15.4]} 44. Qxb5
{[%clk 0:00:20.9]} 44... Rxc5 {[%clk 0:00:14.3]} 45. Qa4 {[%clk 0:00:11.7]}
45... Rec8 {[%clk 0:00:14.1]} 46. Rf1 {[%clk 0:00:10.9]} 46... Rc1 {[%clk
0:00:13.2]} 47. Rxc1 {[%clk 0:00:10.6]} 47... Rxc1+ {[%clk 0:00:12.7]} 48. Kh2
{[%clk 0:00:10.5]} 48... Qe5+ {[%clk 0:00:12.4]} 49. f4 {[%clk 0:00:11.1]} 49...
Qe1 {[%clk 0:00:08.7]} 50. Qa8+ {[%clk 0:00:09.7]} 50... Kh7 {[%clk 0:00:08]}
51. Qxa3 {[%clk 0:00:09.5]} 51... Qg1+ {[%clk 0:00:07.3]} 52. Kg3 {[%clk
0:00:09.9]} 52... Qe1+ {[%clk 0:00:07.7]} 53. Kh2 {[%clk 0:00:10.3]} 53... Rc3
{[%clk 0:00:07.8]} 54. Qd6 {[%clk 0:00:09]} 54... Qg3+ {[%clk 0:00:07.9]} 55.
Kg1 {[%clk 0:00:08.4]} 55... Rc1+ {[%clk 0:00:08.8]} 0-1